fUSD/lending_fUSD_20260621
["ID","MTS","AMOUNT","RATE_DAILY","PERIOD"]
[425846561,1781986232000,-500.0,0.0001489,2]
[425846563,1781986232000,-216.28381402,0.00014896,2]
[425846565,1781986232000,-199.45913932,0.000149,2]
[425846588,1781986232000,-500.0,0.00014999,2]
[425846600,1781986232000,-500.0,0.00014999,2]
[425846594,1781986232000,-500.0,0.00014999,2]
[425846618,1781986232000,-501.71,0.00014999,2]
[425846619,1781986232000,-501.71,0.00014999,2]
[425846617,1781986232000,-501.71,0.00014999,2]
[425846621,1781986232000,-501.71,0.00014999,2]
[425846620,1781986232000,-501.71,0.00014999,2]
[425846622,1781986232000,-501.71,0.00014999,2]
[425846623,1781986232000,-501.71,0.00014999,2]
[425846626,1781986232000,-501.71,0.00014999,2]
[425846625,1781986232000,-501.71,0.00014999,2]
[425846624,1781986232000,-501.71,0.00014999,2]
[425846627,1781986232000,-500.0,0.00014999,2]
[425846629,1781986232000,-500.0,0.00014999,2]
[425846628,1781986232000,-500.0,0.00014999,2]
[425846630,1781986232000,-178.016657,0.00015,2]
[425846632,1781986232000,-35148.70306055,0.00015,2]
[425846631,1781986232000,-35658.93879718,0.00015,2]
[425846634,1781986232000,-3600.0,0.00015,2]
[425846636,1781986232000,-4775.4434167,0.00015,2]
[425846633,1781986232000,-17840.00185016,0.00015,2]
[425846615,1781986232000,-501.71,0.00014999,2]
[425846591,1781986232000,-500.0,0.00014999,2]
[425846616,1781986232000,-501.71,0.00014999,2]
[425846612,1781986232000,-500.0,0.00014999,2]
[425846593,1781986232000,-500.0,0.00014999,2]
[425846596,1781986232000,-500.0,0.00014999,2]
[425846595,1781986232000,-500.0,0.00014999,2]
[425846598,1781986232000,-500.0,0.00014999,2]
[425846597,1781986232000,-500.0,0.00014999,2]
[425846599,1781986232000,-500.0,0.00014999,2]
[425846604,1781986232000,-500.0,0.00014999,2]
[425846635,1781986232000,-1004.0976362,0.00015,2]
[425846614,1781986232000,-501.71,0.00014999,2]
[425846601,1781986232000,-500.0,0.00014999,2]
[425846602,1781986232000,-500.0,0.00014999,2]
[425846605,1781986232000,-175.97860757,0.00014999,2]
[425846607,1781986232000,-500.0,0.00014999,2]
[425846606,1781986232000,-517.14256691,0.00014999,2]
[425846608,1781986232000,-500.0,0.00014999,2]
[425846610,1781986232000,-500.0,0.00014999,2]
[425846609,1781986232000,-500.0,0.00014999,2]
[425846611,1781986232000,-500.0,0.00014999,2]
[425846613,1781986232000,-501.71,0.00014999,2]
[425846603,1781986232000,-500.0,0.00014999,2]
[425846644,1781986238000,-586.89278139,0.000149,2]
[425846645,1781986238000,-776.0,0.000149,2]
[425846648,1781986238000,-10541.66366364,0.00015,2]
[425846647,1781986238000,-1241.99357527,0.00015,2]
[425846646,1781986238000,-1137.10721861,0.000149,2]
[425846705,1781986240000,-1674420.37218444,0.00015,2]
[425846718,1781986243000,-192.18321935,0.00014799,2]
[425846719,1781986243000,-95.88554825,0.00014799,2]
[425846729,1781986246000,-381.7944435,0.00014799,2]
[425846730,1781986246000,-9280.57290292,0.00015,2]
[425846728,1781986246000,-104.31265358,0.00014799,2]
[425846851,1781986438000,250.0,0.00014,2]
[425846852,1781986533000,8742561.8186692,0.00030137,120]
[425846853,1781986541000,174.68406566,0.00023,120]
[425846854,1781986556000,174.68406565,0.00023,120]
[425846859,1781986698000,166.66,0.00014306,2]
[425846862,1781987195000,150.0,0.00014436,2]
[425846866,1781987432000,-91.52765,0.00014607,2]
[425846865,1781987432000,-320.01,0.00014548,2]
[425846867,1781987433000,-75.13235,0.00014607,2]
[425846869,1781987433000,-500.0,0.00014671,2]
[425846870,1781987433000,-330.84935463,0.00014671,2]
[425846868,1781987433000,-500.0,0.00014671,2]
[425846872,1781987433000,-8291.53001998,0.00014673,2]
[425846873,1781987433000,-320.0,0.00014748,2]
[425846871,1781987433000,-1422.11998002,0.00014673,2]
[425846875,1781987433000,-11969.4853,0.0001475,2]
[425846876,1781987433000,-160.0,0.00014767,2]
[425846881,1781987433000,-35731.08251329,0.0001485,2]
[425846874,1781987433000,-322.0,0.00014748,2]
[425846877,1781987433000,-1608.181,0.00014849,2]
[425846878,1781987433000,-150.0,0.00014849,2]
[425846882,1781987433000,-1135.66,0.0001485,2]
[425846880,1781987433000,-1000.0,0.00014849,2]
[425846883,1781987433000,-275.75637362,0.0001485,2]
[425846884,1781987433000,-2335.22036956,0.0001485,2]
[425846879,1781987433000,-171.79337238,0.00014849,2]
[425846903,1781987438000,-3402.34101355,0.0001485,2]
[425846905,1781987438000,-1415.32341435,0.0001485,2]
[425846904,1781987438000,-1151.75478323,0.0001485,2]
[425846936,1781987440000,-606.6000014,0.0001485,2]
[425846937,1781987440000,-3388.69118511,0.0001485,2]
[425846949,1781987443000,-668.26797358,0.0001485,2]
[425846947,1781987443000,-1701.17,0.0001485,2]
[425846948,1781987443000,-794.21926914,0.0001485,2]
[425846946,1781987443000,-951.54083557,0.0001485,2]
[425846952,1781987443000,-924.23968249,0.0001485,2]
[425846951,1781987443000,-2666.0678,0.0001485,2]
[425846953,1781987443000,-316.220239,0.0001485,2]
[425846950,1781987443000,-3302.55053612,0.0001485,2]
[425846962,1781987446000,-6025.09324759,0.0001485,2]
[425846965,1781987446000,-314.2825068,0.00014896,2]
[425846966,1781987446000,-2552.01219616,0.00014899,2]
[425846964,1781987446000,-49535.85663792,0.0001485,2]
[425846967,1781987446000,-310.0,0.000149,2]
[425846968,1781987446000,-319.0,0.000149,2]
[425846969,1781987446000,-310.0,0.000149,2]
[425846970,1781987446000,-313.0,0.000149,2]
[425846972,1781987446000,-237.94308,0.000149,2]
[425846971,1781987446000,-312.0,0.000149,2]
[425846963,1781987446000,-302.93579387,0.0001485,2]
[425846973,1781987446000,-378.58588574,0.000149,2]
[425846983,1781987446000,-200608.75995091,0.00014991,2]
[425846978,1781987446000,-160.0,0.0001492,2]
[425846979,1781987446000,-216.28381402,0.0001492,2]
[425846977,1781987446000,-1020.13,0.00014912,2]
[425846981,1781987446000,-316.8632791,0.0001499,2]
[425846982,1781987446000,-25836.1049421,0.00014991,2]
[425846975,1781987446000,-1221.4476857,0.000149,2]
[425846974,1781987446000,-221.82083682,0.000149,2]
[425846980,1781987446000,-228.9,0.00014926,2]
[425846976,1781987446000,-166.66,0.00014908,2]
[425846989,1781987647000,166.66,0.00014228,2]
[425846988,1781987647000,166.66,0.00013941,2]
[425846987,1781987647000,166.66,0.00013653,2]
[425846990,1781987747000,1000.0,0.00014134,2]
[425846991,1781987840000,338.44,0.00014181,2]
[425846992,1781987867000,190.55,0.0001413,2]
[425846994,1781987981000,150.0,0.00014008,2]
[425846995,1781988153000,183.12,0.00013912,2]
[425846997,1781988243000,250.0,0.00014,2]
[425846998,1781988355000,6486.68411338,0.00013929,2]
[425846999,1781988382000,-1100.29255697,0.00013929,2]
[425847000,1781988404000,-1100.29255697,0.00013929,2]
[425847001,1781988424000,-789.16589224,0.00013929,2]
[425847004,1781988546000,-166.66,0.00013202,2]
[425847005,1781988599000,-166.66,0.0001348,2]
[425847022,1781988632000,-92.30220354,0.00013927,2]
[425847012,1781988632000,-36.89176,0.00013758,2]
[425847010,1781988632000,-270.75,0.0001375,2]
[425847011,1781988632000,-129.76824,0.00013758,2]
[425847013,1781988632000,-181.44,0.00013838,2]
[425847015,1781988632000,-263.67698465,0.00013916,2]
[425847014,1781988632000,-150.0,0.00013895,2]
[425847017,1781988632000,-644.20888887,0.00013927,2]
[425847021,1781988632000,-283.04979646,0.00013927,2]
[425847026,1781988632000,-378.87384316,0.00013927,2]
[425847020,1781988632000,-216.95020354,0.00013927,2]
[425847016,1781988632000,-525.48890759,0.00013916,2]
[425847019,1781988632000,-500.0,0.00013927,2]
[425847028,1781988632000,-307.63938438,0.00013927,2]
[425847025,1781988632000,-121.12615684,0.00013927,2]
[425847018,1781988632000,-500.0,0.00013927,2]
[425847024,1781988632000,-500.0,0.00013927,2]
[425847023,1781988632000,-535.43544674,0.00013927,2]
[425847027,1781988632000,-500.0,0.00013927,2]
[425847051,1781988638000,-500.0,0.00014529,2]
[425847047,1781988638000,-302.00558486,0.00014523,2]
[425847056,1781988638000,-166.66,0.00014592,2]
[425847052,1781988638000,-500.0,0.00014529,2]
[425847054,1781988638000,-415.02897381,0.00014529,2]
[425847050,1781988638000,-209.86078839,0.00014529,2]
[425847049,1781988638000,-234.37704981,0.00014529,2]
[425847053,1781988638000,-287.38565622,0.00014529,2]
[425847057,1781988638000,-700.0,0.000146,5]
[425847058,1781988638000,-157.997711,0.00014668,2]
[425847055,1781988638000,-181.44,0.0001453,2]
[425847046,1781988638000,-300.0,0.000145,5]
[425847041,1781988638000,-606.1580224,0.00013927,2]
[425847043,1781988638000,-166.66,0.00014036,2]
[425847045,1781988638000,-166.66,0.00014314,2]
[425847039,1781988638000,-500.0,0.00013927,2]
[425847035,1781988638000,-500.0,0.00013927,2]
[425847040,1781988638000,-500.0,0.00013927,2]
[425847042,1781988638000,-152.68488044,0.00013929,2]
[425847038,1781988638000,-500.0,0.00013927,2]
[425847037,1781988638000,-500.0,0.00013927,2]
[425847034,1781988638000,-500.0,0.00013927,2]
[425847036,1781988638000,-500.0,0.00013927,2]
[425847033,1781988638000,-500.0,0.00013927,2]
[425847032,1781988638000,-192.36061562,0.00013927,2]
[425847059,1781988638000,-216.28381402,0.00014679,2]
[425847044,1781988638000,-181.44,0.00014184,2]
[425847060,1781988638000,-160.0,0.00014679,2]
[425847048,1781988638000,-190.29815157,0.00014529,2]
[425847064,1781988638000,-316.0,0.0001476,2]
[425847061,1781988638000,-1100.0,0.000147,5]
[425847089,1781988638000,-489.23389195,0.00014928,2]
[425847088,1781988638000,-337767.23388783,0.00014928,2]
[425847087,1781988638000,-267.55016219,0.00014922,2]
[425847085,1781988638000,-203.95121148,0.000149,2]
[425847084,1781988638000,-221.82083682,0.000149,2]
[425847086,1781988638000,-167.1,0.00014918,2]
[425847082,1781988638000,-1900.0,0.000149,5]
[425847083,1781988638000,-252.3905905,0.000149,2]
[425847081,1781988638000,-199.45913932,0.000149,2]
[425847080,1781988638000,-267.55016219,0.00014891,2]
[425847079,1781988638000,-185410.3707,0.00014891,2]
[425847077,1781988638000,-1000.0,0.0001489,2]
[425847078,1781988638000,-435.975,0.00014891,2]
[425847075,1781988638000,-343.0,0.00014874,2]
[425847062,1781988638000,-217.68536207,0.00014749,2]
[425847067,1781988638000,-267.55016227,0.000148,2]
[425847063,1781988638000,-431.0,0.00014757,2]
[425847076,1781988638000,-181.44,0.00014876,2]
[425847066,1781988638000,-312.0,0.00014777,2]
[425847068,1781988638000,-1500.0,0.000148,5]
[425847065,1781988638000,-319.0,0.00014777,2]
[425847070,1781988638000,-250.0,0.00014828,2]
[425847071,1781988638000,-500.0,0.00014828,2]
[425847072,1781988638000,-267.55016219,0.0001483,2]
[425847074,1781988638000,-267.55016219,0.00014861,2]
[425847073,1781988638000,-1254.41808677,0.0001485,2]
[425847069,1781988638000,-568.53669148,0.00014828,2]
[425847298,1781988640000,-11107.70302748,0.00014928,2]
[425847283,1781988640000,-160.0,0.0001393,2]
[425847285,1781988640000,-12194.56960388,0.00014928,2]
[425847347,1781988641000,-2982.14756071,0.000149,2]
[425847351,1781988641000,-285.8381659,0.00014928,2]
[425847349,1781988641000,-62073.75936856,0.00014928,2]
[425847360,1781988641000,-500.0,0.0001499,2]
[425847358,1781988641000,-267.55016219,0.00014983,2]
[425847353,1781988641000,-5539.3375143,0.00014928,2]
[425847363,1781988641000,-500.0,0.0001499,2]
[425847367,1781988641000,-500.0,0.0001499,2]
[425847365,1781988641000,-500.0,0.0001499,2]
[425847372,1781988641000,-104408.15534738,0.00014991,2]
[425847356,1781988641000,-267.55016219,0.00014952,2]
[425847369,1781988641000,-7996.79857106,0.00014991,2]
[425847853,1781988646000,-1877.73271279,0.00014991,2]
[425847852,1781988646000,-504.62374044,0.000149,2]
[425847850,1781988646000,-102.61845714,0.000149,2]
[425847851,1781988646000,-642.89937226,0.000149,2]
[425847849,1781988646000,-711.68,0.000149,2]
[425847858,1781988649000,-3578.70789006,0.00014991,2]
[425847857,1781988649000,-11230.54488992,0.00014991,2]
[425847859,1781988678000,157.35426622,0.00013202,7]
[425847893,1781989293000,-166.66,0.00013542,2]
[425847894,1781989446000,-166.66,0.00013827,2]
[425847895,1781989500000,-600.0,0.00013925,2]
[425847913,1781989831000,-2640.0,0.000146,3]
[425847916,1781989831000,-246.1041651,0.00014687,7]
[425847912,1781989831000,-200.0,0.000145,5]
[425847918,1781989831000,-640.52028167,0.0001469,2]
[425847919,1781989831000,-164.06393487,0.0001469,2]
[425847914,1781989831000,-500.0,0.000146,5]
[425847921,1781989831000,-163.76,0.00014691,2]
[425847917,1781989831000,-551.16995936,0.0001469,2]
[425847911,1781989831000,-130.12209561,0.00014494,2]
[425847915,1781989831000,-166.66,0.00014682,2]
[425847910,1781989831000,-219.87790439,0.00014494,2]
[425847901,1781989831000,-47.84949064,0.00014112,2]
[425847906,1781989831000,-500.0,0.00014399,2]
[425847908,1781989831000,-1242.01539103,0.000144,2]
[425847902,1781989831000,-118.81050936,0.00014112,2]
[425847907,1781989831000,-431.88629818,0.00014399,2]
[425847905,1781989831000,-166.66,0.00014397,2]
[425847903,1781989831000,-150.0,0.00014252,2]
[425847904,1781989831000,-164.29,0.00014373,2]
[425847899,1781989831000,-168.44511,0.00014022,2]
[425847900,1781989831000,-164.29,0.00014022,2]
[425847909,1781989831000,-216.28381402,0.00014402,2]
[425847920,1781989831000,-35016.6413,0.00014691,2]
[425847946,1781989831000,-309.0,0.0001479,2]
[425847922,1781989831000,-596.75229338,0.00014691,2]
[425847949,1781989831000,-315.0,0.0001479,2]
[425847948,1781989831000,-310.0,0.0001479,2]
[425847947,1781989831000,-321.0,0.0001479,2]
[425847944,1781989831000,-320.0,0.0001479,2]
[425847945,1781989831000,-317.0,0.0001479,2]
[425847943,1781989831000,-319.0,0.0001479,2]
[425847924,1781989831000,-800.0,0.000147,5]
[425847940,1781989831000,-314.0,0.0001479,2]
[425847941,1781989831000,-315.0,0.0001479,2]
[425847938,1781989831000,-313.0,0.0001479,2]
[425847939,1781989831000,-317.0,0.0001479,2]
[425847942,1781989831000,-315.0,0.0001479,2]
[425847934,1781989831000,-150.0,0.00014789,2]
[425847935,1781989831000,-150.0,0.00014789,2]
[425847928,1781989831000,-156.0,0.00014788,2]
[425847936,1781989831000,-315.0,0.0001479,2]
[425847929,1781989831000,-209.89238948,0.00014789,2]
[425847931,1781989831000,-150.0,0.00014789,2]
[425847932,1781989831000,-151.0,0.00014789,2]
[425847926,1781989831000,-164.29,0.00014723,2]
[425847930,1781989831000,-150.0,0.00014789,2]
[425847933,1781989831000,-151.0,0.00014789,2]
[425847937,1781989831000,-311.0,0.0001479,2]
[425847958,1781989832000,-1100.0,0.000148,5]
[425847960,1781989832000,-168.26039366,0.000149,2]
[425847959,1781989832000,-1400.0,0.000149,5]
[425847954,1781989832000,-153.0,0.00014791,2]
[425847950,1781989832000,-315.0,0.0001479,2]
[425847955,1781989832000,-150.0,0.00014791,2]
[425847951,1781989832000,-313.0,0.0001479,2]
[425847952,1781989832000,-316.0,0.0001479,2]
[425847953,1781989832000,-150.0,0.00014791,2]
[425847956,1781989832000,-150.0,0.00014791,2]
[425847966,1781989832000,-500.0,0.00014927,2]
[425847961,1781989832000,-1988.09837382,0.000149,2]
[425847969,1781989832000,-2987.84278171,0.00014932,2]
[425847971,1781989832000,-1160.88,0.00014932,2]
[425847965,1781989832000,-500.0,0.00014927,2]
[425847970,1781989832000,-13345.59732265,0.00014932,2]
[425847957,1781989832000,-160.0,0.00014798,2]
[425847967,1781989832000,-500.0,0.00014927,2]
[425847964,1781989832000,-500.0,0.00014927,2]
[425847962,1781989832000,-500.0,0.00014927,2]
[425847963,1781989832000,-322.39733427,0.00014927,2]
[425847968,1781989832000,-19995.05060415,0.00014932,2]
[425847980,1781989837000,-500.0,0.00014931,2]
[425847981,1781989837000,-50.0,0.00014932,2]
[425847983,1781989837000,-581.29801762,0.00014932,2]
[425847984,1781989837000,-315.0,0.00014932,2]
[425847982,1781989837000,-3866.82546826,0.00014932,2]
[425847987,1781989837000,-166.66,0.00014967,2]
[425847986,1781989837000,-69591.04089266,0.00014932,2]
[425847989,1781989837000,-500.0,0.0001499,2]
[425847990,1781989837000,-191.87003257,0.0001499,2]
[425847988,1781989837000,-500.0,0.00014976,2]
[425847985,1781989837000,-641.02529285,0.00014932,2]
[425847991,1781989838000,-200.0,0.00014991,2]
[425847992,1781989838000,-500.0,0.00014999,2]
[425847994,1781989838000,-500.0,0.00014999,2]
[425847996,1781989838000,-517.3078204,0.00014999,2]
[425847995,1781989838000,-500.0,0.00014999,2]
[425847997,1781989838000,-92376.57877149,0.00015,2]
[425847993,1781989838000,-500.0,0.00014999,2]
[425848186,1781989839000,-1076.87566343,0.00015,2]
[425848185,1781989839000,-293.98000534,0.00015,2]
[425848201,1781989842000,-19618.77052784,0.00015,2]
[425848200,1781989842000,-158.96460437,0.00015,2]
[425848199,1781989842000,-946.83520363,0.000149,2]
[425848198,1781989842000,-478.41803999,0.000149,2]
[425848196,1781989842000,-943.49547628,0.000149,2]
[425848195,1781989842000,-765.98205054,0.000149,2]
[425848202,1781989843000,-13709.17047854,0.00015,2]
[425848206,1781989845000,-1784.64,0.00015,2]
[425848205,1781989845000,-36119.28028908,0.00015,2]
[425848214,1781990028000,-229.41657676,0.00014302,7]
[425848215,1781990082000,-2270.45930188,0.000144,5]
[425848217,1781990262000,-2270.45930188,0.000136,5]
[425848218,1781990282000,-987.54069812,0.000136,5]
[425848224,1781990431000,-166.66,0.00013216,2]
[425848225,1781990485000,-166.66,0.00013494,2]
[425848226,1781990538000,-166.66,0.00013772,2]
[425848227,1781990592000,-216.6,0.00013939,2]
[425848229,1781990645000,-181.19250238,0.00013951,2]
[425848230,1781990699000,-2270.45930188,0.00013805,2]
[425848231,1781990717000,-2270.45930188,0.00013805,2]
[425848232,1781990734000,-2270.45930188,0.00013805,2]
[425848233,1781990752000,-2270.45930188,0.00013805,2]
[425848234,1781990769000,-2270.45930188,0.00013805,2]
[425848235,1781990819000,-322.1101859,0.00013805,2]
[425848259,1781991031000,-158.45567988,0.00013807,2]
[425848256,1781991031000,-160.49505669,0.00013804,2]
[425848258,1781991031000,-57.82813414,0.00013807,2]
[425848257,1781991031000,-5223.9533047,0.00013805,2]
[425848253,1781991031000,-265.83293506,0.00013804,2]
[425848254,1781991031000,-112.77465381,0.00013804,2]
[425848250,1781991031000,-500.0,0.00013804,2]
[425848252,1781991031000,-121.39241113,0.00013804,2]
[425848248,1781991031000,-177.55458988,0.00013804,2]
[425848251,1781991031000,-500.0,0.00013804,2]
[425848249,1781991031000,-500.0,0.00013804,2]
[425848247,1781991031000,-500.0,0.00013804,2]
[425848262,1781991031000,-453.98490439,0.00013821,2]
[425848261,1781991031000,-59.10422145,0.00013821,2]
[425848255,1781991031000,-500.0,0.00013804,2]
[425848263,1781991031000,-500.0,0.00013823,2]
[425848260,1781991031000,-612.0758172,0.00013821,2]
[425848277,1781991031000,-219.95,0.00014481,2]
[425848275,1781991031000,-705.72,0.00014291,2]
[425848276,1781991031000,-166.66,0.00014329,2]
[425848272,1781991031000,-166.66,0.00014051,2]
[425848274,1781991031000,-1000.0,0.0001429,2]
[425848273,1781991031000,-150.0,0.0001408,2]
[425848271,1781991031000,-270.950115,0.00014,2]
[425848268,1781991031000,-1732.37733862,0.0001399,2]
[425848265,1781991031000,-705.72,0.00013943,2]
[425848266,1781991031000,-301.87799328,0.0001399,2]
[425848267,1781991031000,-427.73922559,0.0001399,2]
[425848269,1781991031000,-27203.0453305,0.0001399,2]
[425848264,1781991031000,-150.0,0.00013942,2]
[425848270,1781991031000,-250.0,0.00014,2]
[425848287,1781991032000,-291.32334823,0.00014723,7]
[425848296,1781991032000,-1325.39891588,0.000149,2]
[425848292,1781991032000,-823.8697,0.00014869,2]
[425848290,1781991032000,-10778.97604439,0.00014869,2]
[425848288,1781991032000,-1100.0,0.000148,5]
[425848289,1781991032000,-3096.14524287,0.00014869,2]
[425848286,1781991032000,-800.0,0.000147,5]
[425848298,1781991032000,-24127.7434566,0.00014938,2]
[425848285,1781991032000,-705.72,0.0001464,2]
[425848280,1781991032000,-1676.0017,0.00014591,2]
[425848282,1781991032000,-166.66,0.00014607,2]
[425848281,1781991032000,-500.0,0.000146,5]
[425848279,1781991032000,-6811.3779,0.00014591,2]
[425848278,1781991032000,-200.0,0.000145,5]
[425848284,1781991032000,-500.0,0.0001463,2]
[425848295,1781991032000,-2927.87295893,0.000149,2]
[425848283,1781991032000,-160.0,0.00014608,2]
[425848291,1781991032000,-755.40822939,0.00014869,2]
[425848310,1781991032000,-369.01895,0.00014969,2]
[425848308,1781991032000,-344.81306968,0.00014969,2]
[425848309,1781991032000,-4971.17531648,0.00014969,2]
[425848305,1781991032000,-17859.25567047,0.00014969,2]
[425848304,1781991032000,-35077.90235779,0.00014969,2]
[425848307,1781991032000,-3207.38,0.00014969,2]
[425848311,1781991032000,-676.9659404,0.00014969,2]
[425848293,1781991032000,-174.8153241,0.000149,2]
[425848303,1781991032000,-131305.84075129,0.00014969,2]
[425848301,1781991032000,-500.0,0.00014968,2]
[425848302,1781991032000,-500.0,0.00014968,2]
[425848299,1781991032000,-517.14256691,0.00014968,2]
[425848297,1781991032000,-500.0,0.00014931,2]
[425848300,1781991032000,-500.0,0.00014968,2]
[425848294,1781991032000,-1400.0,0.000149,5]
[425848306,1781991032000,-1292.0,0.00014969,2]
[425848318,1781991037000,-2150.29444335,0.00014969,2]
[425848317,1781991037000,-1046.26,0.00014969,2]
[425848316,1781991037000,-1925.48568279,0.00014969,2]
[425848315,1781991037000,-301.46653865,0.000149,2]
[425848314,1781991037000,-160.0,0.00013807,2]
[425848323,1781991039000,-1177.83885115,0.00014969,2]
[425848322,1781991039000,-2011.96462247,0.00014969,2]
[425848324,1781991039000,-950.54531083,0.00014969,2]
[425848325,1781991040000,-13063.29095622,0.00014969,2]
[425848326,1781991040000,-497.30227216,0.00014969,2]
[425848328,1781991040000,-1511.7806423,0.00014969,2]
[425848327,1781991040000,-53869.43753832,0.00014969,2]
[425848334,1781991040000,-500.0,0.00014999,2]
[425848332,1781991040000,-1500.99413629,0.0001499,2]
[425848329,1781991040000,-11233.9548967,0.00014969,2]
[425848331,1781991040000,-1500.99413629,0.0001499,2]
[425848335,1781991040000,-500.0,0.00014999,2]
[425848336,1781991040000,-500.0,0.00014999,2]
[425848333,1781991040000,-500.0,0.00014999,2]
[425848330,1781991040000,-705.72,0.00014989,2]
[425848338,1781991040000,-506.42122447,0.00014999,2]
[425848339,1781991040000,-500.0,0.00014999,2]
[425848337,1781991040000,-500.0,0.00014999,2]
[425848359,1781991040000,-3150.80815502,0.00015,2]
[425848357,1781991040000,-600.0,0.00015,2]
[425848348,1781991040000,-484.08846829,0.00015,2]
[425848351,1781991040000,-2662.75311705,0.00015,2]
[425848343,1781991040000,-183474.05609381,0.00015,2]
[425848353,1781991040000,-322.52655475,0.00015,2]
[425848345,1781991040000,-434.13896745,0.00015,2]
[425848341,1781991040000,-423.0,0.00015,5]
[425848342,1781991040000,-209.0,0.00015,5]
[425848340,1781991040000,-500.0,0.00014999,2]
[425848675,1781991043000,-938.50190951,0.00015,2]
[425848720,1781991046000,-14917.89804961,0.00015,2]
[425848721,1781991046000,-2569.30850471,0.00015,2]
[425848724,1781991088000,-428.45307204,0.00013804,2]
[425848729,1781991511000,-299.91715043,0.00013889,2]
[425848730,1781991529000,-359.16238809,0.00013889,2]
[425848732,1781991565000,-251.4017837,0.00013889,2]
[425848733,1781991583000,-600.0,0.0001389,2]
[425848734,1781991612000,-2270.45930188,0.0001389,2]
[425848736,1781991630000,-2270.45930188,0.0001389,2]
[425848737,1781991662000,-2270.45930188,0.0001389,2]
[425848738,1781991693000,-2270.45930188,0.0001389,2]
[425848739,1781991697000,-2401.51650709,0.0001389,2]
[425848740,1781991699000,-2401.51650709,0.0001389,2]
[425848741,1781991699000,63000.08,0.00013,2]
[425848746,1781991815000,-1011.48856729,0.0001389,2]
[425848747,1781991818000,-1011.48856729,0.0001389,2]
[425848750,1781991821000,-2092.30776979,0.0001389,2]
[425848749,1781991821000,-309.2087373,0.00013889,2]
[425848748,1781991821000,295.2,0.00013,2]
[425848752,1781991823000,-2191.57450179,0.0001389,2]
[425848751,1781991823000,-209.9420053,0.00013889,2]
[425848753,1781991854000,-2401.51650709,0.0001389,2]
[425848754,1781991857000,-2401.51650709,0.0001389,2]
[425848755,1781991859000,-785.49601378,0.0001389,2]
[425848757,1781991861000,-33.23601378,0.0001389,2]
[425848756,1781991861000,-752.26,0.00013792,2]
[425848758,1781991863000,1709.1,0.00013,2]
[425848759,1781991866000,-674.93249315,0.0001389,2]
[425848760,1781991868000,-674.93249315,0.0001389,2]
[425848761,1781991929000,-150.0,0.00013129,2]
[425848762,1781991983000,-674.93249315,0.00013159,2]
[425848763,1781992000000,-785.49601378,0.00013159,2]
[425848764,1781992017000,-785.49601378,0.00013159,2]
[425848765,1781992020000,-498.28595255,0.00013159,2]
[425848766,1781992035000,-668.79460112,0.00013159,2]
[425848767,1781992084000,-292.85957891,0.0001309,2]
[425848768,1781992098000,166.66,0.0001296,2]
[425848769,1781992138000,-500.0,0.00013158,2]
[425848771,1781992156000,-51.63907632,0.00013232,2]
[425848770,1781992156000,-500.0,0.00013232,2]
[425848772,1781992192000,-448.36092368,0.00013232,2]
[425848780,1781992231000,-164.26987644,0.00013233,2]
[425848781,1781992231000,-166.66,0.00013233,2]
[425848784,1781992231000,-150.0,0.00013691,2]
[425848785,1781992231000,-216.44611611,0.00013714,2]
[425848783,1781992231000,-446.53,0.00013556,2]
[425848782,1781992231000,-166.66,0.00013506,2]
[425848787,1781992231000,-1623.11679656,0.00013715,2]